Cogmind - Beta 15 @@@ ROGUE MODE // 2025.07.21 @ 17:33:55 Player: Skysub Result: Destroyed by LO-EQN(R) with Subdweller Laser Performance ------------- Evolutions (0) 0 Regions Visited (2) 400 Robots Destroyed (30) 150 Value Destroyed (715) 715 Prototype IDs (11) 220 Alien Tech Used (0) 0 Bonus (0) 0 TOTAL SCORE: 1485 Bonus ------- None Cogmind --------- Core Integrity 0/250 Matter 261/300 Energy 99/100 System Corruption 1% Temperature Cool (6) Movement Rolling (150) Ox4 Location -10/Subcaves Parts ------- > --- POWER (1) -------- (None) > --- PROPULSION (2) --- Improved Treads Subdweller Monowheel > --- UTILITY (2) ------ Huge Storage Unit > --- WEAPON (2) ------- Flail > --- INVENTORY (25) --- Light Ion Engine Improved Treads Improved Treads Improved Treads Arachnoskeleton Wheel Subdweller Optics Subdweller Optics Subdweller Optics Subdweller Optics Subdweller Beam Cannon Subdweller Beam Cannon Light Assault Rifle Autogun Autogun Autogun Subdweller Machine Gun Grenade Launcher Grenade Launcher Subdweller Shrapnel Launcher Mining Laser Peak State ------------ > --- POWER ------------ Subdweller Power Source > --- PROPULSION ------- Improved Treads Wheel > --- UTILITY ---------- Huge Storage Unit > --- WEAPON ----------- Autogun Flail > --- INVENTORY -------- Light Ion Engine Improved Treads Improved Treads Improved Treads Arachnoskeleton Wheel Subdweller Monowheel Structural Scanner Subdweller Optics Subdweller Optics Subdweller Beam Cannon Subdweller Beam Cannon Light Assault Rifle Autogun Autogun Autogun Grenade Launcher Grenade Launcher Grenade Launcher Grenade Launcher Mining Laser [Rating: 15] Favorites ----------- Power Light Ion Engine Engine Light Ion Engine Propulsion Light Treads Treads Light Treads Wheel Wheel Utility Backup Plating I Device Structural Scanner Storage Huge Storage Unit Protection Backup Plating I Weapon Assault Rifle Energy Gun Small Laser Ballistic Gun Assault Rifle Launcher Grenade Launcher Impact Weapon Flail Build | -11 -10 -10 ------- Run | Yrd Mat Sub Slots Evolved . | . . . Power . | . . . Propulsion . | . . . Utility . | . . . Weapon . | . . . Parts Attached 24 | 6 10 8 Power 3 | 1 1 1 Engine 3 | 1 1 1 Core . | . . . Reactor . | . . . Propulsion 8 | 2 3 3 Treads 5 | 2 2 1 Leg . | . . . Wheel 3 | . 1 2 Hover . | . . . Flight . | . . . Utility 4 | 1 2 1 Device 1 | . . 1 Storage 2 | 1 1 . Processor . | . . . Hackware . | . . . Protection 1 | . 1 . Artifact . | . . . Weapon 9 | 2 4 3 Energy Gun 1 | 1 . . Energy Cannon . | . . . Ballistic Gun 3 | 1 1 1 Ballistic Cannon . | . . . Launcher 4 | . 2 2 Special Weapon . | . . . Impact Weapon 1 | . 1 . Slashing Weapon . | . . . Piercing Weapon . | . . . Special Melee Weapon . | . . . Unidentified Prototypes . | . . . Parts Lost 10 | . 2 8 Power 3 | . 1 2 Propulsion 2 | . . 2 Utility 2 | . . 2 Weapon 3 | . 1 2 Highest Loss Streak 4 | . 1 4 To Critical Strikes . | . . . Average Backups 12 | 2 9 18 Power . | . . 1 Propulsion 3 | 1 2 5 Utility 1 | . . 2 Weapon 6 | . 5 9 Tool/Special . | . . . Unused Backups 19 | 1 1 17 Power 1 | . . 1 Propulsion 4 | . . 4 Utility 4 | . . 4 Weapon 10 | 1 1 8 Tool/Special . | . . . Average Slot Usage (%) 96 | . 98 93 Engine 13 | . 13 12 Treads 20 | . 23 14 Wheel 7 | . 4 13 Device 3 | . . 8 Storage 14 | . 14 14 Protection 7 | . 12 . Energy Gun 6 | . 10 . Ballistic Gun 11 | . 13 7 Launcher 5 | . 3 10 Impact Weapon 3 | . . 9 Peak Build Rating 15 | 6 11 15 Average Rating 9 | 4 7 13 On Entrance 5 | . 6 11 Naked Turns . | . . . Heaviest Build 91 | 11 90 91 Greatest Support 40 | 40 40 20 Greatest Overweight (x) 9 | . 8 9 Average Overweight (x) 4 | . 2 8 Largest Inventory Capacity 25 | 8 25 25 Average Capacity 17 | 6 13 25 Most Carried 25 | 4 19 25 Average Carried 13 | 1 9 20 Final Capacity 25 | 8 25 25 Final Carried 23 | 4 16 23 Class Distribution -------------------- 100% | Mutant Dominant Class ---------------- Mutant | -10/Materials Mutant | -10/Subcaves Resources | -11 -10 -10 ----------- Run | Yrd Mat Sub Matter Collected 711 | 179 375 157 Remotely . | . . . Salvage Created 830 | 21 683 126 Parts 63 | 4 55 4 Haulers Intercepted . | . . . Recyclers Shooed . | . . . Parts Field Recycled . | . . . Retrieved Matter . | . . . Parts Self-Destructed . | . . . Prevented . | . . . Kills | -11 -10 -10 ------- Run | Yrd Mat Sub Combat Hostiles Destroyed 21 | . 17 4 Melee 1 | . . 1 Guns 13 | . 13 . AOE 7 | . 4 3 Classes Destroyed 8 | 1 6 1 Worker 1 | . 1 . Builder 3 | . 3 . Tunneler 2 | 1 1 . Recycler 1 | . 1 . Watcher 2 | . 2 . Swarmer 6 | . 6 . Grunt 11 | . 11 . Subdweller 4 | . . 4 Best Kill Streak 4 | 1 4 2 Combat Bots Only 3 | . 3 2 Max Kills in Single Turn 3 | 1 3 1 Gunslinging 1 | . 1 . Exploded 3 | . 3 1 Melee 1 | . . 1 Uniques/NPCs Destroyed . | . . . Combat | -11 -10 -10 -------- Run | Yrd Mat Sub Hostile Shots Fired 93 | . 58 35 Missed 17 | . 10 7 Hits 76 | . 48 28 Projectile 76 | . 48 28 AOE 4 | . . 4 Critical Strikes 2 | . 1 1 Damage Taken 1356 | . 542 814 Core 267 | . 67 200 Absorbed by Shields . | . . . Core Remaining (%) 100 | 100 . . Volleys Fired 57 | 1 51 5 Largest 2 | 2 2 2 Hottest 60 | 60 60 53 Shots Fired 112 | 2 101 9 Gun 104 | 2 98 4 Cannon . | . . . Launcher 8 | . 3 5 Special . | . . . Kinetic 56 | 1 51 4 Thermal 48 | 1 47 . Explosive 8 | . 3 5 Electromagnetic . | . . . Robot Hit Streak 8 | 2 8 5 Robot Miss Streak 3 | . 3 2 Penetration Max . | . . . Secondary Targets 1 | . 1 . Max Gunslinging Chain 1 | . 1 . Shots Hit Robots 64 | 2 51 11 Core Hits 48 | 1 40 7 Critical Kills . | . . . Critical Parts Destroyed 1 | . 1 . Critical Strikes 1 | . 1 . Destroy 1 | . 1 . Melee Attacks 19 | . . 19 Impact 19 | . . 19 Slashing . | . . . Piercing . | . . . Sneak Attacks . | . . . Combat Hostiles . | . . . Follow-up Attacks . | . . . Damage Inflicted 1594 | 24 1074 496 Guns 665 | 24 612 29 Cannons . | . . . Explosions 765 | . 448 317 Melee 150 | . . 150 Ramming 14 | . 14 . Kinetic 371 | 12 330 29 Thermal 294 | 12 282 . Explosive 638 | . 321 317 Electromagnetic 127 | . 127 . Impact 150 | . . 150 Slashing . | . . . Piercing . | . . . Highest Corruption 1 | . 1 1 Average Corruption 1 | . 1 1 Corruption Purged . | . . . Corruption Blocked . | . . . Effects 27 | . 14 13 Message Errors 5 | . 2 3 Matter Fused 7 | . 4 3 Heat Flow Errors 3 | . 1 2 Energy Discharges 2 | . . 2 Data Loss (minor) 4 | . 3 1 Data Loss (major) 4 | . 2 2 Misfires 1 | . 1 . Alerts 1 | . 1 . Overload Shots . | . . . Overflow Damage 7 | . 7 . Projectiles . | . . . Explosions 7 | . 7 . Melee . | . . . Knockbacks 1 | . . 1 Impact 1 | . . 1 Kinetic . | . . . Secondary . | . . . Self-Inflicted Damage 44 | . 44 . Shots 1 | . 1 . Rammed 7 | . 7 . Targets Rammed 7 | . 7 . Kicked . | . . . Crushed . | . . . Highest Temperature 230 | . 190 230 Average Temperature 34 | . 29 110 Received Heat Transfer 288 | . 204 84 Siege Activations . | . . . Martial Activations . | . . . Shielding Activations . | . . . Robots Disrupted . | . . . Combat Hostiles . | . . . Robots Corrupted . | . . . Combat Hostiles . | . . . Parts Fried . | . . . Impact Corruptions . | . . . Robots Melted . | . . . Combat Hostiles . | . . . Parts Melted . | . . . Heat Transferred 675 | 25 650 . Parts Sabotaged . | . . . Parts Stolen . | . . . Parts Stripped . | . . . Power Chain Reactions . | . . . Alert | -11 -10 -10 ------- Run | Yrd Mat Sub Maximum Alert Level 1 | . 1 . Low Security (%) 79 | 100 78 . Level 1 20 | . 21 . Level 2 . | . . . Level 3 . | . . . Level 4 . | . . . Level 5 . | . . . High Security . | . . . Max Security . | . . . Peak Influence 244 | 5 244 . Initial . | . . . Average 137 | . 145 . Influence Increases 690 | 5 685 . Destroy 0b10 Robot/C 340 | . 340 . Destroy 0b10 Robot/NC 45 | 5 40 . Destroy Leader 114 | . 114 . Successful Hack 16 | . 16 . Select Force Hacks 60 | . 60 . Disable Machine 60 | . 60 . Destroy Structure 25 | . 25 . Lose Combat Pursuer 30 | . 30 . Influence Decreases 690 | 5 585 100 Entered New Map 48 | . . 48 Time Decay 622 | 5 565 52 Lost Part 20 | . 20 . Squads Dispatched 8 | . 8 . Investigation 6 | . 6 . Extermination . | . . . Reinforcement 2 | . 2 . Assault . | . . . Garrison . | . . . Intercept . | . . . Searches Triggered . | . . . Construction Impeded . | . . . Haulers Reinforced . | . . . Active Scanning Responses . | . . . Cargo Convoy Interrupts . | . . . Stealth | -11 -10 -10 --------- Run | Yrd Mat Sub Distress Signals 1 | . 1 . Communications Jammed . | . . . Distress Signals . | . . . Times Spotted 38 | . 32 6 Peak Tracking Total 3 | . 3 2 Tactical Retreats 2 | . 2 . Traps | -11 -10 -10 ------- Run | Yrd Mat Sub Traps Triggered 5 | . 3 2 Indirectly . | . . . Trap Hack Attempts . | . . . Triggered . | . . . Disarmed . | . . . Reprogrammed . | . . . Reused . | . . . Traps Extracted . | . . . Installed . | . . . Triggered . | . . . Machines | -11 -10 -10 ---------- Run | Yrd Mat Sub Machines Disabled 5 | . 4 1 Max in Single Turn 2 | . 2 1 Machines Repaired . | . . . Machines Dismantled . | . . . Machines Sabotaged . | . . . Overloaded Fab Kills . | . . . Hacking | -11 -10 -10 --------- Run | Yrd Mat Sub Machines Accessed 10 | . 8 2 Terminals 6 | . 6 . Fabricators . | . . . Repair Stations . | . . . Recycling Units 2 | . 2 . Scanalyzers . | . . . Garrison Access . | . . . Total Hacks 21 | . 19 2 Successful 17 | . 15 2 Failed 4 | . 4 . Catastrophic 1 | . 1 . Database Lockouts . | . . . Manual 14 | . 14 . Terminals 14 | . 14 . Fabricators . | . . . Repair Stations . | . . . Recycling Units 5 | . 5 . Scanalyzers . | . . . Garrison Access . | . . . Terminal Hacks 5 | . 3 2 Open Door 1 | . . 1 Terminal Index 1 | . 1 . Recall Investigation 1 | . 1 . Zone Layout 1 | . 1 . Proto ID Catalog 1 | . . 1 Fabricator Hacks . | . . . Repair Station Hacks . | . . . Recycling Unit Hacks 3 | . 3 . Report Inventory 2 | . 2 . Retrieve Components 1 | . 1 . Scanalyzer . | . . . Garrison Access Hacks . | . . . Unauthorized Hacks 9 | . 9 . Terminals 7 | . 7 . Botnet 1 | . 1 . Skim 6 | . 6 . Fabricators . | . . . Repair Stations . | . . . Recycling Units 2 | . 2 . Tunnel 2 | . 2 . Scanalyzers . | . . . Garrison Access . | . . . Data Cores Recovered . | . . . Used . | . . . Hacking Detections 6 | . 6 . Full Trace Events 1 | . 1 . Feedback Events . | . . . Feedback Blocked . | . . . Robot Schematics Acquired . | . . . Robots Built . | . . . Authchips . | . . . Time . | . . . Total Robot Build Rating . | . . . Part Schematics Acquired . | . . . Parts Built . | . . . Authchips . | . . . Time . | . . . Total Part Build Rating . | . . . Parts Repaired . | . . . Time . | . . . Parts Recycled . | . . . Recycled Matter . | . . . Retrieved Matter . | . . . Retrieved Components 7 | . 7 . Parts Scanalyzed . | . . . Part Schematics Acquired . | . . . Parts Damaged . | . . . Bothacking | -11 -10 -10 ------------ Run | Yrd Mat Sub Used RIF Installer . | . . . Robots Hacked . | . . . Non-combat . | . . . Combat . | . . . Robot Hacks Applied . | . . . Relay Couplers Released . | . . . Fabnet Peak Effective % . | . . . Robots Rewired . | . . . Allies Hacked . | . . . Hacks Repelled . | . . . Allies | -11 -10 -10 -------- Run | Yrd Mat Sub Total Allies . | . . . Largest Group . | . . . Highest-Rated Group . | . . . Highest-Rated Ally . | . . . Total Orders . | . . . Ally Attacks . | . . . Total Damage . | . . . Kills . | . . . Allies Corrupted . | . . . Allies Melted . | . . . Intel | -11 -10 -10 ------- Run | Yrd Mat Sub Active Infowar (turns) 705 | . . 705 Structural 705 | . . 705 Robot Analysis Total . | . . . Derelict Logs Recovered 2 | . . 2 Drone Launches . | . . . Drone Recoveries . | . . . Exploration | -11 -10 -10 ------------- Run | Yrd Mat Sub Turns Passed 3070 | 98 1851 1121 Spaces Moved 1330 | 52 771 507 Core 1 | 1 . . Treads 638 | 51 587 . Legs . | . . . Wheels 691 | . 184 507 Hover . | . . . Flight . | . . . Fastest Speed 50 | 50 160 150 Average Speed 189 | 157 182 203 Slowest Speed 400 | 160 400 215 Overloaded Moves . | . . . Propulsion Burnouts . | . . . Robots Hopped . | . . . Potential Cave-ins . | . . . Cave-ins Triggered . | . . . Exploration Rate (%) 45 | 5 95 36 Regions Visited 2 Branch Regions 1 Pre-discovered Areas 4 | . 2 2 Known Exits Taken 1 | . 1 . Unknown Exits Taken 1 | 1 . . Scrap Searched 8 | . . 8 Spaces Dug . | . . . Terrain Destroyed 60 | . 28 32 Melee . | . . . Projectile . | . . . AOE 60 | . 28 32 Terrain Rammed . | . . . Walls Destroyed . | . . . Machines Disabled . | . . . Actions | -11 -10 -10 --------- Run | Yrd Mat Sub Total 1725 | 64 1106 555 Wait 244 | . 244 . Move 1328 | 51 770 507 Hop . | . . . Pick Up 31 | 5 16 10 Fast Attach 8 | 6 1 1 Attach 6 | . 2 4 Detach . | . . . Swap 17 | . 9 8 Drop 8 | 1 6 1 Fire 57 | 1 51 5 Melee 19 | . . 19 Ram 1 | . 1 . Kick . | . . . Crush 6 | . 6 . Escape Stasis . | . . . Rewire . | . . . Trap . | . . . Miscellaneous . | . . . Route ------- -11/Scrapyard -10/Materials (discovered 5 exits: *Mat x3 / [*Min] / *Sub) -10/Subcaves (discovered 2 exits: *Mat x2) History --------- Turn | Location | Event 33 | -11/Scrapyard | Discovered new exit (range 13) 99 | -11/Scrapyard | Entered Materials 322 | -10/Materials | Discovered new exit (range 16) 327 | -10/Materials | Build established: Mutant 558 | -10/Materials | Discovered new exit (range 16) 700 | -10/Materials | Discovered new exit (range 16) 1744 | -10/Materials | Identified exit to Subcaves 1744 | -10/Materials | Identified exit to Materials 1950 | -10/Materials | Entered Subcaves 1951 | -10/Subcaves | Identified exit to Materials 1956 | -10/Subcaves | Learned location of Zion (-7) 2257 | -10/Subcaves | Visited 4L-MR0's lab 2277 | -10/Subcaves | Found Arachnoskeleton 2529 | -10/Subcaves | Disturbed a concealed Subdweller 2549 | -10/Subcaves | Core integrity fell below 50% 2591 | -10/Subcaves | Lost 3 parts (1p1n1u) 2770 | -10/Subcaves | Shifting Twisted Machinery released Sub. Shrapnel Launcher 3064 | -10/Subcaves | Ambushed by Subdwellers from Twisted Machinery 3066 | -10/Subcaves | Core integrity fell below 20% 3071 | -10/Subcaves | Destroyed by LO-EQN(R) with Subdweller Laser Last Messages --------------- 02863_ UU-X5Y(O) puts together Battle Cannon. 02880_ Dropped Autogun. 02880_ Acquired Sub. Shrapnel Launcher. 02900_ />QIH/X4GC3RBP,GXY3SMJA9D0JHVBKZJ1:B 02949_ System corrupted: Heat flow error (+270). 02967_ System corrupted: Heat flow error (+182). 02994_ System corrupted: Matter fused (-6). 03008_ Connecting with UFD SUBCON Station... >>Open Door Sealed Heavy Doors opened. 03064_ LO-EQN(R) emerges from the Twisted Machinery. 03065_ UU-X5Y(O) cries out in pain. 03065_ UU-X5Y(O) destroyed. 03067_ Structural Scanner destroyed. 03067_ Wheel destroyed. 03067_ Grenade Launcher destroyed. 03069_ Sub. Power Source destroyed. 03069_ MN-VQZ(u) cries out in pain. 03069_ MN-VQZ(u) destroyed. Map ----- +----------------------------------------------------+ | #####????????????????????????????????????????????? | | ?????????????????????????????????????????????????? | | ?????????????????????????????????????????????????? | | ?????????????????????????????????????????????????? | | ?????##########??????????????????????????????????? | | ?????##########??????????????????????????????????? | | ?????##""""""##??????????????????????????????????? | | ?????##""""X"##??????????????????????????????????? | | ?????## "##??????????????????????????????????? | | ?????## "##??????????????????????????????????? | | ?????##" """"##??????????????????????????????????? | | ?????### ######??????????????????????????????????? | | ?????##" ""####??????????????????????????????????? | | ????###X ########??????????????????????????????? | | ????#### #########????????????????????????????? | | ###### #### ### #####???????????????????????????? | | ###### ## ## ####??????????????????????????? | | ## # ### #######??????????????????????? | | # = ## #####????????????????????? | | #### % #????????????????????? | | ##### ## ] ##???????????????????? | | ### ##### ### #???????????????????? | | ##### #### #### #???????????????????? | | ##### ### ##; #???????????????????? | | ???####### ## #???????????????????? | | ???####### @ ;#???????????????????? | | ???????## ## ; ????????????? | | ???????## ### # ????????? | | ??????## ### ###;;;RR; < ## ?????????? | | ??????### ?## #####; """###???????????? | | ??????##### ?## ?????## """"" "##?????????????? | | ???????#### ?## ??????# """ ##??????????????? | | ?????????## ??## ?????? """"" #???????????????? | | ??????????????????????? """" #???????????????? | | ??????????????????????? " ????"#???????????????? | | ??????????????????????? "??????????????????????? | | ?????????????????????? ??????????????????????? | | ?????????????????????? "??????????????????????? | | ??????????????????????""""???????????????????????? | | ???????????????????????""????????????????????????? | | ?????????????????????????????????????????????????? | | ?????????????????????????????????????????????????? | | ?????????????????????????????????????????????????? | | ?????????????????????????????????????????????????? | | ?????????????????????????????????????????????????? | | ?????????????????????????????????????????????????? | | ?????????????????????????????????????????????????? | | ?????????????????????????????????????????????????? | | ?????????????????????????????????????????????????? | | ?????????????????????????????????????????????????? | +----------------------------------------------------+ Best States ------------- Heat Dissipation 25 Energy Generation 15 Energy Capacity 200 Matter Stores 300 Matter Capacity 300 Sight Range 16 Terrain Scan Density 10 Armor Coverage 80 Evasion (%) 40 Recoil Reduction 2 Item Schematics ----------------- None Robot Schematics ------------------ None Fabricated ------------ Nothing Repaired ---------- Nothing Alien Tech Used ----------------- None Achievements -------------- None Challenges ------------ None Game ------ Seed ProjectionServoMatter Manual? 0 Play Time 00:15:45 Cumulative 167.1 hours Start 2025.07.21 @ 17:20:27 End 2025.07.21 @ 17:33:55 Sessions 1 Manual Loads 0 Difficulty Rogue Special Mode None Game No. 189 Rogue 189 Adventurer 0 Explorer 0 Win Type - Total 3 Types 1/0/0/1/0/0/0/0/0/1 Lore% 67 Gallery% 62 Achievement% 55 Wizard Run 0 Options --------- Layout 1 ASCII 0 Keyboard 1 Movement Arrows Keybinds 0 Fullscreen 1 Font 36/Smallcaps Map View 50x40 Zoom Use 0% Tactical HUD 1 Map Filters NONE Filters NONE Steam 1 RUN: 84fd4964-b5e9-4710-835c-a4a068b9e003